Workbook

Sheet List1 (hidden)
A1: Výpočet polohy slunce | J1: p | K1: 3.1415
J2: Sin(e) | K2: =SIN(23.5*$K$1/180) -> 0.3987379757
A3: zeměpisná šířka (°) | C3: 50 | V3: =V5*15 -> 210
A4: přestupný rok | C4: 0 | V4: čas
O5: s vlivem refrakce | V5: 14 | Y5: z makra
A6: Dat | B6: Dniroku | C6: l | D6: Sin(d) | E6: d (°) | F6: cos (a) | G6: a | H6: cos (t) | I6: t (°) | J6: t (h) | K6: tvých (h) | L6: tzáp (h) | M6: sin(Avých) | N6: Avých (°) | O6: cos (t) | P6: t (°) | Q6: tvých (h) | R6: tzáp (h) | S6: tsvit (h) | T6: hmax (°) | U6: sin(h) | V6: h(°) | W6: sin(A) | X6: A (°) | Y6: h(°) | Z6: A (°) | AA6: Avýchr (°)
A7: 2006-01-01 | B7: =dniroku(DAY(A7),MONTH(A7),0) -> 1 | C7: =(dniroku(DAY(A7),MONTH(A7),$C$4)-dniroku(21,3,$C$4))*360/365.25 -> -78.85010267 | D7: =SIN(C7*pi/180)*Sine -> -0.3912085189 | E7: =ASIN(D7)*180/pi -> -23.03039712 | F7: =COS(C7*pi/180)/COS(E7*pi/180) -> 0.2101660993 | G7: =ACOS(F7)*180/pi -> 77.87021033 | H7: =-TAN($C$3*pi/180)*TAN(E7*pi/180) -> 0.5065725772 | I7: =ACOS(H7)*180/pi -> 59.56595746 | J7: =I7/15 -> 3.971063831 | K7: =12-J7 -> 8.028936169 | L7: =12+J7 -> 15.97106383 | M7: =COS(E7*pi/180)*SIN(I7*pi/180) -> 0.7934819788 | N7: =ASIN(M7)*180/pi -> 52.5136577 | O7: =(COS(90.85*pi/180)-SIN($C$3*pi/180)*SIN(E7*pi/180))/COS($C$3*pi/180)/COS(E7*pi/180) -> 0.4815749902 | P7: =ACOS(O7)*180/pi -> 61.21348762 | Q7: =12-P7/15 -> 7.919100825 | R7: =12+P7/15 -> 16.08089917 | S7: =L7-K7 -> 7.942127662 | T7: =90-$C$3+E7 -> 16.96960288 | U7: =SIN(E7*pi/180)*COS((90-$C$3)*pi/180)+COS(E7*pi/180)*COS(($V$5*15-180)*pi/180)*SIN((90-$C$3)*pi/180) -> 0.2126086259 | V7: =ASIN(U7)*180/pi -> 12.27563039 | W7: =COS(E7*pi/180)*SIN(($V$5*15-180)*pi/180)/COS(V7*pi/180) -> 0.4709048166 | X7: =ASIN(W7)*180/pi -> 28.09387474 | Y7: 12.36159225 | Z7: 28.12452402 | AA7: 52.67777596
A8: 2006-01-15 | B8: =dniroku(DAY(A8),MONTH(A8),0) -> 15 | C8: =(dniroku(DAY(A8),MONTH(A8),$C$4)-dniroku(21,3,$C$4))*360/365.25 -> -65.0513347 | D8: =SIN(C8*pi/180)*Sine -> -0.361524537 | E8: =ASIN(D8)*180/pi -> -21.19447769 | F8: =COS(C8*pi/180)/COS(E8*pi/180) -> 0.4524381813 | G8: =ACOS(F8)*180/pi -> 63.10163796 | H8: =-TAN($C$3*pi/180)*TAN(E8*pi/180) -> 0.4620795053 | I8: =ACOS(H8)*180/pi -> 62.48046691 | J8: =I8/15 -> 4.165364461 | K8: =12-J8 -> 7.834635539 | L8: =12+J8 -> 16.16536446 | M8: =COS(E8*pi/180)*SIN(I8*pi/180) -> 0.8268550485 | N8: 55.77866294 | O8: =(COS(90.85*pi/180)-SIN($C$3*pi/180)*SIN(E8*pi/180))/COS($C$3*pi/180)/COS(E8*pi/180) -> 0.4374052733 | P8: =ACOS(O8)*180/pi -> 64.0634452 | Q8: =12-P8/15 -> 7.729103653 | R8: =12+P8/15 -> 16.27089635 | S8: =L8-K8 -> 8.330728922 | T8: =90-$C$3+E8 -> 18.80552231 | U8: =SIN(E8*pi/180)*COS((90-$C$3)*pi/180)+COS(E8*pi/180)*COS(($V$5*15-180)*pi/180)*SIN((90-$C$3)*pi/180) -> 0.2420619024 | V8: =ASIN(U8)*180/pi -> 14.00868067 | W8: =COS(E8*pi/180)*SIN(($V$5*15-180)*pi/180)/COS(V8*pi/180) -> 0.4804572388 | X8: =ASIN(W8)*180/pi -> 28.71611617 | Y8: 14.18716517 | Z8: 28.78074606 | AA8: 56.11006624
A9: 2006-01-31 | B9: 31 | C9: -49.28131417 | D9: -0.302205537 | E9: -17.59063985 | F9: 0.6843637876 | G9: 46.81578755 | H9: 0.3778006137 | I9: 67.80448575 | J9: 4.52029905 | K9: 7.47970095 | L9: 16.52029905 | M9: 0.8825950847 | N9: 61.95883645 | O9: 0.3536668554 | P9: 69.29028241 | Q9: 7.380647839 | R9: 16.61935216 | S9: 9.0405981 | T9: 22.40936015 | U9: 0.2991268815 | V9: 17.4056825 | W9: 0.4994780761 | X9: 29.96635958 | Y9: 17.66987677 | Z9: 30.0655486 | AA9: 62.42966196 | AB9: =(Q9-K9)/60 -> -0.001650885184
A10: 2006-02-15 | B10: 46 | C10: -34.49691992 | D10: -0.2258241753 | E10: -13.05173229 | F10: 0.8460210435 | G10: 32.21945242 | H10: 0.2762487422 | I10: 73.96573657 | J10: 4.931049105 | K10: 7.068950895 | L10: 16.9310491 | M10: 0.936259469 | N10: 69.43463066 | O10: 0.252633381 | P10: 75.36882582 | Q10: 6.975411612 | R10: 17.02458839 | S10: 9.862098209 | T10: 26.94826771 | U10: 0.3692877168 | V10: 21.67233482 | W10: 0.5241182488 | X10: 31.6098354 | Y10: 21.99321245 | Z10: 31.73739851 | AA10: 69.98764885 | AB10: =(Q10-K10)/60 -> -0.001558988059
A11: 2006-02-28 | B11: 59 | C11: -21.68377823 | D11: -0.1473230404 | E11: -8.472074412 | F11: 0.9394926826 | G11: 20.03405798 | H11: 0.1775003941 | I11: 79.77815431 | J11: 5.31854362 | K11: 6.68145638 | L11: 17.31854362 | M11: 0.9733824269 | N11: 76.75305572 | O11: 0.1542412695 | P11: 81.12959768 | Q11: 6.591360154 | R11: 17.40863985 | S11: 10.63708724 | T11: 31.52792559 | U11: 0.437729703 | V11: 25.95988236 | W11: 0.5500248563 | X11: 33.36970239 | Y11: 26.31061941 | Z11: 33.51948269 | AA11: 77.3464159 | AB11: -0.001501603753
A12: 2006-03-15 | B12: 75 | C12: -5.9137577 | D12: -0.04108131619 | E12: -2.35451805 | F12: 0.9955188304 | G12: 5.426357962 | H12: 0.04899761072 | I12: 87.19409076 | J12: 5.812939384 | K12: 6.187060616 | L12: 17.81293938 | M12: 0.9979557161 | N12: 86.33832039 | O12: 0.02597284237 | P12: 88.5143089 | Q12: 6.099046073 | R12: 17.90095393 | S12: 11.62587877 | T12: 37.64548195 | U12: 0.5247211146 | V12: 31.65040417 | W12: 0.5868432816 | X12: 35.93437622 | Y12: 31.65189101 | Z12: 35.93508831 | AA12: 86.34082128 | AB12: -0.001466909044
A13: 2006-03-21 | B13: 81 | C13: 0 | D13: 0 | E13: 0 | F13: 1 | G13: 0 | H13: 0 | I13: 90.00265441 | J13: 6.000176961 | K13: 5.999823039 | L13: 18.00017696 | M13: 1 | N13: 90.00265441 | O13: -0.02300533099 | P13: 91.32091795 | Q13: 5.911938803 | R13: 18.0880612 | S13: 12.00035392 | T13: 40 | U13: 0.5566617025 | V13: 33.82624278 | W13: 0.6018574533 | X13: 37.00413543 | Y13: 33.82624278 | Z13: 37.00413543 | AA13: 90 | AB13: -0.001464737273
A14: 2006-03-31 | B14: 91 | C14: 9.856262834 | D14: 0.06825280113 | E14: 3.913755471 | F14: 0.9875440458 | G14: 9.052963499 | H14: -0.0815263843 | I14: 94.67910008 | J14: 6.311940005 | K14: 5.688059995 | L14: 18.31194001 | M14: 0.994347005 | N14: =180-ASIN(M14)*180/pi -> 96.09263793 | O14: -0.1045854878 | P14: 96.00611674 | Q14: 5.599592218 | R14: 18.40040778 | S14: 12.62388001 | T14: 43.91375547 | U14: 0.6076491823 | V14: 37.42082059 | W14: 0.6280750379 | X14: 38.90939222 | Y14: 37.41839296 | Z14: 38.90803968 | AA14: 96.08849432 | AB14: -0.001474462954
A15: 2006-04-15 | B15: 106 | C15: 24.64065708 | D15: 0.166239585 | E15: 9.56953428 | F15: 0.9217718696 | G15: 22.81416549 | H15: -0.2009017367 | I15: 101.5926913 | J15: 6.772846088 | K15: 5.227153912 | L15: 18.77284609 | M15: 0.96598049 | N15: =180-ASIN(M15)*180/pi -> 104.9856817 | O15: -0.2242316949 | P15: 102.9607398 | Q15: 5.135950683 | R15: 18.86404932 | S15: 13.54569218 | T15: 49.56953428 | U15: 0.6762650836 | V15: 42.55372344 | W15: 0.6692783746 | X15: 42.01263288 | Y15: 42.54814901 | Z15: 42.0089644 | AA15: 104.9758439 | AB15: -0.001520053828
A16: 2006-04-30 | B16: 121 | C16: 39.42505133 | D16: 0.2532196031 | E16: 14.66854646 | F16: 0.7984926808 | G16: 37.01468757 | H16: -0.3119256218 | I16: 108.1785062 | J16: 7.211900416 | K16: 4.788099584 | L16: 19.21190042 | M16: 0.9191414348 | N16: 113.1971433 | O16: -0.3357059827 | P16: 109.618707 | Q16: 4.692086198 | R16: 19.3079138 | S16: 14.42380083 | T16: 54.66854646 | U16: 0.732500264 | V16: 47.09780062 | W16: 0.7105098432 | X16: 45.27774808 | Y16: 47.09023025 | Z16: 45.27179399 | AA16: 113.1830831 | AB16: -0.001600223099
A17: 2006-05-15 | B17: 136 | C17: 54.20944559 | D17: 0.3234338858 | E17: 18.87127597 | F17: 0.6180672292 | G17: 51.82639821 | H17: -0.4073268534 | I17: 114.0403855 | J17: 7.602692367 | K17: 4.397307633 | L17: 19.60269237 | M17: 0.8641942229 | N17: 120.2074135 | O17: -0.4316389403 | P17: 115.5750251 | Q17: 4.294998329 | R17: 19.70500167 | S17: 15.20538473 | T17: 58.87127597 | U17: 0.7745105766 | V17: 50.76217792 | W17: 0.7479322335 | X17: 48.41300547 | Y17: 50.75430361 | Z17: 48.4056642 | AA17: 120.1918422 | AB17: -0.00170515506
A18: 2006-05-30 | B18: 151 | C18: 68.99383984 | D18: 0.3722335275 | E18: 21.85407535 | F18: 0.3862583449 | G18: 67.28010217 | H18: -0.4779320842 | I18: 118.5539265 | J18: 7.903595101 | K18: 4.096404899 | L18: 19.9035951 | M18: 0.815274413 | N18: 125.383885 | O18: -0.5027185961 | P18: 120.183569 | Q18: 3.987762068 | R18: 20.01223793 | S18: 15.8071902 | T18: 61.85407535 | U18: 0.8018118468 | V18: 53.30504307 | W18: 0.7765651478 | X18: 50.94865316 | Y18: 53.29890884 | Z18: 50.94210606 | AA18: 125.3709999 | AB18: -0.001810713845
A19: 2006-06-15 | B19: 167 | C19: 84.76386037 | D19: 0.3970724674 | E19: 23.39598139 | F19: 0.09948293578 | G19: 84.29308961 | H19: -0.5155746072 | I19: 121.03944 | J19: 8.069296002 | K19: 3.930703998 | L19: 20.069296 | M19: 0.7864011416 | N19: 128.1480177 | O19: -0.5406406895 | P19: 122.7308837 | Q19: 3.81794109 | R19: 20.18205891 | S19: 16.138592 | T19: 63.39598139 | U19: 0.8150774313 | V19: 54.59662903 | W19: 0.7920596255 | X19: 52.37995024 | Y19: 54.5947049 | Z19: 52.37773615 | AA19: 128.1438192 | AB19: -0.001879381809
A20: 2006-06-21 | B20: 173 | C20: =(dniroku(DAY(A20),MONTH(A20),$C$4)-dniroku(21,3,$C$4))*360/365.25 -> 90.67761807 | D20: 0.39871031 | E20: 23.49827148 | F20: =COS(C20*pi/180)/COS(E20*pi/180) -> -0.01284485305 | G20: 90.73865222 | H20: -0.5181022392 | I20: 121.2086141 | J20: 8.080574273 | K20: 3.919425727 | L20: 20.08057427 | M20: 0.7843930396 | N20: 128.3338996 | O20: -0.5431877368 | P20: 122.9045315 | Q20: 3.806364569 | R20: 20.19363543 | S20: 16.16114855 | T20: 63.49827148 | U20: 0.8159366973 | V20: 54.68169865 | W20: 0.7931041037 | X20: 52.47809616 | Y20: 54.68195058 | Z20: 52.47838757 | AA20: 128.3344508 | AB20: -0.001884352645
A21: 2006-06-30 | B21: 182 | C21: 99.54825462 | D21: 0.3932173475 | E21: 23.1555238 | F21: -0.1803561582 | G21: 100.3934666 | H21: -0.5096481178 | I21: 120.643952 | J21: 8.042930133 | K21: 3.957069867 | L21: 20.04293013 | M21: 0.7910752606 | N21: 127.7123478 | O21: -0.5346689916 | P21: 122.3250737 | Q21: 3.844995087 | R21: 20.15500491 | S21: 16.08586027 | T21: 63.1555238 | U21: 0.8130472928 | V21: 54.39634198 | W21: 0.7896123954 | X21: 52.15084205 | Y21: 54.40041061 | Z21: 52.15546897 | AA21: 127.7211709 | AB21: -0.001867913013
A22: 2006-07-01 | B22: 183 | C22: 100.5338809 | D22: 0.3920218059 | E22: 23.08104142 | F22: -0.1986682654 | G22: 101.462086 | H22: -0.5078166946 | I22: 120.5220645 | J22: 8.034804299 | K22: 3.965195701 | L22: 20.0348043 | M22: 0.7925099688 | N22: 127.5777594 | O22: -0.5328236872 | P22: 122.2000433 | Q22: 3.853330449 | R22: 20.14666955 | S22: 16.0696086 | T22: 63.08104142 | U22: 0.8124155456 | V22: 54.33421508 | W22: 0.7888566617 | X22: 52.08032875 | Y22: 54.33874557 | Z22: 52.08546202 | AA22: 127.5875653 | AB22: -0.001864420858
A23: 2006-07-15 | B23: 197 | C23: 114.3326489 | D23: 0.3633272055 | E23: 21.30530063 | F23: -0.4421991967 | G23: 116.2477114 | H23: -0.4647329782 | I23: 117.6964134 | J23: 7.84642756 | K23: 4.15357244 | L23: 19.84642756 | M23: 0.8249405849 | N23: 124.4158927 | O23: -0.4894257753 | P23: 119.3063651 | Q23: 4.046242327 | R23: 19.95375767 | S23: 15.69285512 | T23: 61.30530063 | U23: 0.7969499292 | V23: 52.84137967 | W23: 0.771164492 | X23: 50.46006288 | Y23: 52.85303726 | Z23: 50.47219356 | AA23: 124.4400857 | AB23: -0.001788835219
A24: 2006-08-01 | B24: 214 | C24: 131.0882957 | D24: 0.3005455632 | E24: 17.4908897 | F24: -0.6890258531 | G24: 133.556985 | H24: -0.3755187188 | I24: 112.0596814 | J24: 7.470645425 | K24: 4.529354575 | L24: 19.47064543 | M24: 0.8839658055 | N24: 117.8736473 | O24: -0.399639201 | P24: 113.5589743 | Q24: 4.429401715 | R24: 19.57059829 | S24: 14.94129085 | T24: 57.4908897 | U24: 0.7611610533 | V24: 49.56812286 | W24: 0.7352732712 | X24: 47.33170814 | Y24: 49.58950078 | Z24: 47.3505221 | AA24: 117.9149671 | AB24: -0.001665880998
A25: 2006-08-15 | B25: 228 | C25: 144.8870637 | D25: 0.229374406 | E25: 13.26063431 | F25: -0.8403830395 | G25: 147.1849306 | H25: -0.280830924 | I25: 106.3129385 | J25: 7.087529236 | K25: 4.912470764 | L25: 19.08752924 | M25: 0.9341684651 | N25: 110.9037449 | O25: -0.3044664182 | P25: 107.7292424 | Q25: 4.818050504 | R25: 19.1819495 | S25: 14.17505847 | T25: 53.26063431 | U25: 0.7175341615 | V25: 45.85262203 | W25: 0.6986932192 | X25: 44.32356181 | Y25: 45.88206614 | Z25: 44.34555997 | AA25: 110.9575493 | AB25: -0.00157367101
A26: 2006-09-01 | B26: 245 | C26: 161.6427105 | D26: 0.1256106723 | E26: 7.216235518 | F26: -0.9566619699 | G26: 163.0749528 | H26: -0.1508842071 | I26: 98.68108147 | J26: 6.578738765 | K26: 5.421261235 | L26: 18.57873876 | M26: 0.9807217335 | N26: 101.2663257 | O26: -0.1740732039 | P26: 100.0276789 | Q26: 5.331488074 | R26: 18.66851193 | S26: 13.15747753 | T26: 47.21623552 | U26: 0.6484777464 | V26: 40.42812089 | W26: 0.6516088243 | X26: 40.66420973 | Y26: 40.46634018 | Z26: 40.68760683 | AA26: 101.3326825 | AB26: -0.001496219355
A27: 2006-09-15 | B27: 259 | C27: 175.4414784 | D27: 0.03172651253 | E27: 1.818153984 | F27: -0.9973315638 | G27: 175.8185739 | H27: -0.03782725179 | I27: 92.17057743 | J27: 6.144705162 | K27: 5.855294838 | L27: 18.14470516 | M27: 0.9987812412 | N27: 92.82647911 | O27: -0.06084416978 | P27: 93.49102596 | Q27: 5.767264936 | R27: 18.23273506 | S27: 12.28941032 | T27: 41.81815398 | U27: 0.5806858105 | V27: 35.49984035 | W27: 0.6138286387 | X27: 37.86797314 | Y27: 35.54368078 | Z27: 37.891123 | AA27: 92.90076727 | AB27: -0.001467165027
A28: 2006-09-21 | B28: 265 | C28: 181.3552361 | D28: -0.009393390309 | E28: -0.5382254088 | F28: -0.999766585 | G28: 178.7673014 | H28: 0.01119451543 | I28: 89.36122361 | J28: 5.957414907 | K28: 6.042585093 | L28: 17.95741491 | M28: 0.9998932233 | N28: =ASIN(M28)*180/pi -> 89.16533251 | O28: -0.01181183057 | P28: 90.67945815 | Q28: 5.95470279 | R28: 18.04529721 | S28: 11.91482981 | T28: 39.46177459 | U28: 0.5494412644 | V28: 33.32967279 | W28: 0.5983784729 | X28: 36.75493638 | Y28: 33.37531763 | Z28: 36.77771326 | AA28: 89.24226715 | AB28: -0.001464705046
A29: 2006-10-01 | B29: 275 | C29: 191.211499 | D29: -0.07748861405 | E29: -4.444356759 | F29: -0.9838936207 | G29: 169.7077558 | H29: 0.09262099687 | I29: 84.68808849 | J29: 5.645872566 | K29: 6.354127434 | L29: 17.64587257 | M29: 0.9927075984 | N29: 83.07876694 | O29: 0.0695462857 | P29: 86.014609 | Q29: 6.265692734 | R29: 17.73430727 | S29: 11.29174513 | T29: 35.55564324 | U29: 0.495627205 | V29: 29.71199373 | W29: 0.5739355097 | X29: 35.02615234 | Y29: 29.75966922 | Z29: 35.04802651 | AA29: 83.15894462 | AB29: -0.00147391167
A30: 2006-10-15 | B30: 289 | C30: 205.0102669 | D30: -0.1685405706 | E30: -9.703261755 | F30: -0.9194293492 | G30: 156.8474246 | H30: 0.2037632227 | I30: 78.24519879 | J30: 5.216346586 | K30: 6.783653414 | L30: 17.21634659 | M30: 0.965015038 | N30: 74.80188782 | O30: 0.1804240178 | P30: 79.60788923 | Q30: 6.692807385 | R30: 17.30719262 | S30: 10.43269317 | T30: 30.29673824 | U30: 0.4195867015 | V30: 24.80922867 | W30: 0.5429391752 | X30: 32.88491613 | Y30: 24.85732953 | Z30: 32.90498546 | AA30: 74.8836072 | AB30: -0.001514100489
A31: 2006-11-01 | B31: 306 | C31: 221.7659138 | D31: -0.2655609706 | E31: -15.40074262 | F31: -0.7737299245 | G31: 140.6941741 | H31: 0.3282529266 | I31: 70.83931972 | J31: 4.722621315 | K31: 7.277378685 | L31: 16.72262131 | M31: 0.9106734866 | N31: 65.60052365 | O31: 0.3043908039 | P31: 72.28061477 | Q31: 7.181292349 | R31: 16.81870765 | S31: 9.44524263 | T31: 24.59925738 | U31: 0.3332392245 | V31: 19.46607572 | W31: 0.5112563744 | X31: 30.74845935 | Y31: 19.51011709 | Z31: 30.76540052 | AA31: 65.67766377 | AB31: -0.001601438938
A32: 2006-11-15 | B32: 320 | C32: 235.5646817 | D32: -0.3288378176 | E32: -19.19881716 | F32: -0.5988814642 | G32: 126.7935698 | H32: 0.4149500287 | I32: 65.48576175 | J32: 4.36571745 | K32: 7.63428255 | L32: 16.36571745 | M32: 0.8592444997 | N32: 59.23360785 | O32: 0.3905899461 | P32: 67.01076377 | Q32: 7.532615748 | R32: 16.46738425 | S32: 8.7314349 | T32: 20.80118284 | U32: 0.2737950113 | V32: 15.89068624 | W32: 0.4909403532 | X32: 29.4032742 | Y32: 15.92702044 | Z32: 29.41666986 | AA32: 59.2995076 | AB32: -0.001694446693
A33: 2006-12-01 | B33: 336 | C33: 251.3347023 | D33: -0.3777495559 | E33: -22.19500904 | F33: -0.345781511 | G33: 110.2327604 | H33: 0.4861832417 | I33: 60.91177214 | J33: 4.060784809 | K33: 7.939215191 | L33: 16.06078481 | M33: 0.8091109149 | N33: 54.01074905 | O33: 0.4613369981 | P33: 62.52842888 | Q33: 7.831438075 | R33: 16.16856193 | S33: 8.121569619 | T33: 17.80499096 | U33: 0.2260394704 | V33: 13.06439559 | W33: 0.4752416589 | X33: 28.37592246 | Y33: 13.08686827 | Z33: 28.38398574 | AA33: 54.05312112 | AB33: -0.001796285262
A34: 2006-12-21 | B34: 356 | C34: 271.0472279 | D34: -0.3986723873 | E34: -23.49590215 | F34: 0.01977667828 | G34: 88.86942691 | H34: 0.5180436479 | I34: 58.80061966 | J34: 3.920041311 | K34: 8.079958689 | L34: 15.92004131 | M34: 0.784439687 | N34: 51.67040971 | O34: 0.4929586013 | P34: 60.46655526 | Q34: 7.968896316 | R34: 16.03110368 | S34: 7.840082621 | T34: 16.50409785 | U34: 0.2051047372 | V34: 11.83597941 | W34: 0.4684946232 | X34: 27.93744751 | Y34: 11.83472165 | Z34: 27.93700078 | AA34: 51.66798786 | AB34: -0.001851039557
A35: 2006-12-31 | B35: 366 | C35: 280.9034908 | D35: -0.3915505365 | E35: -23.05169262 | F35: 0.2054142558 | G35: 78.14855454 | H35: 0.5070956039 | I35: 59.53119343 | J35: 3.968746229 | K35: 8.031253771 | L35: 15.96874623 | M35: 0.7930736034 | N35: 52.47522706 | O35: 0.4820940652 | P35: 61.17954609 | Q35: 7.921363594 | R35: 16.07863641 | S35: 7.937492458 | T35: 16.94830738 | U35: 0.2122656475 | V35: 12.25551956 | W35: 0.4707944604 | X35: 28.08670739 | Y35: 12.24078631 | Z35: 28.08145731 | AA35: 52.44706418 | AB35: -0.001831502948
A36: =NOW() -> 2020-01-24T18:46:53.550 | B36: =dniroku(DAY(A36),MONTH(A36),0) -> 24 | C36: =(dniroku(DAY(A36),MONTH(A36),$C$4)-dniroku(21,3,$C$4))*360/365.25 -> -56.18069815 | D36: =SIN(C36*pi/180)*Sine -> -0.3312639028 | E36: =ASIN(D36)*180/pi -> -19.34607777 | F36: =COS(C36*pi/180)/COS(E36*pi/180) -> 0.5899067846 | G36: =ACOS(F36)*180/pi -> 53.85119458 | H36: =-TAN($C$3*pi/180)*TAN(E36*pi/180) -> 0.4183872323 | I36: =ACOS(H36)*180/pi -> 65.26911643 | J36: =I36/15 -> 4.351274428 | K36: =12-J36 -> 7.648725572 | L36: =12+J36 -> 16.35127443 | M36: =COS(E36*pi/180)*SIN(I36*pi/180) -> 0.8569862103 | N36: =ASIN(M36)*180/pi -> 58.98159988 | O36: =(COS(90.85*pi/180)-SIN($C$3*pi/180)*SIN(E36*pi/180))/COS($C$3*pi/180)/COS(E36*pi/180) -> 0.3940052493 | P36: =ACOS(O36)*180/pi -> 66.7980216 | Q36: =12-P36/15 -> 7.54679856 | R36: =12+P36/15 -> 16.45320144 | S36: =L36-K36 -> 8.702548857 | T36: =90-$C$3+E36 -> 20.65392223 | U36: =SIN(E36*pi/180)*COS((90-$C$3)*pi/180)+COS(E36*pi/180)*COS(($V$5*15-180)*pi/180)*SIN((90-$C$3)*pi/180) -> 0.2714642928 | V36: =ASIN(U36)*180/pi -> 15.75188396 | W36: =COS(E36*pi/180)*SIN(($V$5*15-180)*pi/180)/COS(V36*pi/180) -> 0.4901627955 | X36: =ASIN(W36)*180/pi -> 29.35214788 | Y36: 12.24078631 | Z36: 28.08145731 | AA36: 52.44706418

Sheet List2 (hidden)
A1: Výpočet ciferníku vodorovných slunečních hodin
A4: Datum: | B4: 2006-01-01 | F4: 2006-02-01 | J4: 2006-03-21 | N4: 2006-04-01 | R4: 2006-05-01 | V4: 2006-06-01 | Z4: 2006-07-01 | AD4: 2006-08-01 | AH4: 2006-09-01 | AL4: 2006-10-01 | AP4: 2006-11-01 | AT4: 2006-12-01 | AX4: 2006-09-21
A5: Čas | B5: x | C5: y | F5: x | G5: y | J5: x | K5: y | N5: x | O5: y | P5: A | Q5: h | R5: x | S5: y | V5: x | W5: y | X5: A | Y5: t | Z5: x | AA5: y | AD5: x | AE5: y | AH5: x | AI5: y | AL5: x | AM5: y | AP5: x | AQ5: y | AT5: x | AU5: y
A6: 4 | V6: =Stopa(V$4,$A6) -> pod obzorem | X6: -126.6594548 | Y6: -0.3624980946
A7: 5 | N7: =Stopa(N$4,$A7) -> pod obzorem | P7: -104.3479168 | Q7: -6.163500718 | V7: =Stopa(V$4,$A7) -> 18.98907401 | W7: 31.53581196 | X7: -115.421893 | Y7: 7.845188407
A8: 6 | N8: =Stopa(N$4,$A8) -> 8 | O8: 83.23928861 | P8: -92.75118823 | Q8: 3.304093043 | R8: =Stopa(R$4,$A8) -> 8 | S8: 23.39601625 | V8: =Stopa(V$4,$A8) -> 8 | W8: 15.37928979 | X8: -104.579048 | Y8: 16.84392269 | Z8: =Stopa(Z$4,$A8) -> 8 | AA8: 14.6783956 | AD8: =Stopa(AD$4,$A8) -> 8 | AE8: 19.82630202 | AH8: =Stopa(AH$4,$A8) -> 8 | AI8: 49.13665614
A9: 7 | J9: =Stopa(J$4,$A9) -> -1.786571253 | K9: 28.08493877 | N9: =Stopa(N$4,$A9) -> 0.7469390305 | O9: 20.81441681 | P9: -81.11716877 | Q9: 12.86394749 | R9: =Stopa(R$4,$A9) -> 3.636374499 | S9: 12.52248125 | V9: =Stopa(V$4,$A9) -> 3.3856857 | W9: 9.716045908 | X9: -86.3821881 | Y9: 26.29763959 | Z9: =Stopa(Z$4,$A9) -> 3.28315023 | AA9: 9.421795517 | AD9: =Stopa(AD$4,$A9) -> 3.967764832 | AE9: 11.38646309 | AH9: =Stopa(AH$4,$A9) -> 1.851616214 | AI9: 17.64427783 | AL9: =Stopa(AL$4,$A9) -> -7.224638945 | AM9: 43.69079236 | AX9: =Stopa(AX$4,$A9) -> -2.192402704 | AY9: 29.2495705
A10: 8 | F10: =Stopa(F$4,$A10) -> -31.10223568 | G10: 52.07839458 | J10: =Stopa(J$4,$A10) -> -1.786571253 | K10: 13.03426544 | N10: =Stopa(N$4,$A10) -> -0.2880002497 | O10: 11.03839051 | P10: -68.77072085 | Q10: 22.11046709 | R10: =Stopa(R$4,$A10) -> 2.044564497 | S10: 7.931759261 | V10: =Stopa(V$4,$A10) -> 3.053871252 | W10: 6.587511943 | X10: -81.82680984 | Y10: 35.86362131 | Z10: =Stopa(Z$4,$A10) -> 3.167989796 | AA10: 6.435522922 | AD10: =Stopa(AD$4,$A10) -> 2.43668737 | AE10: 7.40950959 | AH10: =Stopa(AH$4,$A10) -> 0.5081882908 | AI10: 9.977985133 | AL10: =Stopa(AL$4,$A10) -> -4.006507673 | AM10: 15.99089242 | AP10: =Stopa(AP$4,$A10) -> -20.83505598 | AQ10: 38.40402976 | AX10: =Stopa(AX$4,$A10) -> -1.992525435 | AY10: 13.30856595
A11: 9 | B11: =Stopa(B$4,$A11) -> -27.32172259 | C11: 27.16046786 | F11: =Stopa(F$4,$A11) -> -12.82829488 | G11: 16.01581667 | J11: =Stopa(J$4,$A11) -> -1.786571253 | K11: 7.525336662 | N11: =Stopa(N$4,$A11) -> -0.6771654121 | O11: 6.672264403 | P11: -54.97007366 | Q11: 30.55914155 | R11: =Stopa(R$4,$A11) -> 1.273289942 | S11: 5.172471186 | V11: =Stopa(V$4,$A11) -> 2.215966576 | W11: 4.447604545 | X11: -68.14317765 | Y11: 45.11327632 | Z11: =Stopa(Z$4,$A11) -> 2.326758981 | AA11: 4.36241126 | AD11: =Stopa(AD$4,$A11) -> 1.631783 | AE11: 4.896809682 | AH11: =Stopa(AH$4,$A11) -> -0.04427421058 | AI11: 6.185605773 | AL11: =Stopa(AL$4,$A11) -> -3.258510062 | AM11: 8.657176895 | AP11: =Stopa(AP$4,$A11) -> -10.36528993 | AQ11: 14.12190092 | AT11: =Stopa(AT$4,$A11) -> -23.89780699 | AU11: 24.52766451 | AX11: =Stopa(AX$4,$A11) -> -1.931310705 | AY11: 7.636633364
A12: 10 | B12: =Stopa(B$4,$A12) -> -15.88543284 | C12: 10.6039546 | F12: =Stopa(F$4,$A12) -> -9.255704899 | G12: 7.66068225 | J12: =Stopa(J$4,$A12) -> -1.786571253 | K12: 4.344755148 | N12: =Stopa(N$4,$A12) -> -0.8615019314 | O12: 3.934069976 | P12: -38.98079995 | Q12: 37.57075616 | R12: =Stopa(R$4,$A12) -> 0.8638609144 | S12: 3.168093935 | V12: =Stopa(V$4,$A12) -> 1.746654806 | W12: 2.77617697 | X12: -50.93472785 | Y12: 53.38031185 | Z12: =Stopa(Z$4,$A12) -> 1.852629968 | AA12: 2.729129222 | AD12: =Stopa(AD$4,$A12) -> 1.195651757 | AE12: 3.020795158 | AH12: =Stopa(AH$4,$A12) -> -0.3159478849 | AI12: 3.691870876 | AL12: =Stopa(AL$4,$A12) -> -2.956125 | AM12: 4.863979351 | AP12: =Stopa(AP$4,$A12) -> -7.820478337 | AQ12: 7.023512414 | AT12: =Stopa(AT$4,$A12) -> -14.54903491 | AU12: 10.01065981 | AX12: =Stopa(AX$4,$A12) -> -1.904430657 | AY12: 4.397078913
A13: 11 | B13: =Stopa(B$4,$A13) -> -12.78807547 | C13: 4.283138409 | F13: =Stopa(F$4,$A13) -> -7.993292922 | G13: 3.295229868 | J13: =Stopa(J$4,$A13) -> -1.786571253 | K13: 2.016407881 | N13: =Stopa(N$4,$A13) -> -0.9489884654 | O13: 1.843833801 | P13: -20.43377414 | Q13: 42.33226003 | R13: =Stopa(R$4,$A13) -> 0.6582192603 | S13: 1.512687556 | V13: =Stopa(V$4,$A13) -> 1.504103564 | W13: 1.338403045 | X13: -28.20205251 | Y13: 59.51613451 | Z13: =Stopa(Z$4,$A13) -> 1.606751417 | AA13: 1.317253663 | AD13: =Stopa(AD$4,$A13) -> 0.9742264539 | AE13: 1.447577991 | AH13: =Stopa(AH$4,$A13) -> -0.447230983 | AI13: 1.740452574 | AL13: =Stopa(AL$4,$A13) -> -2.822362236 | AM13: 2.229820429 | AP13: =Stopa(AP$4,$A13) -> -6.872136386 | AQ13: 3.064228753 | AT13: =Stopa(AT$4,$A13) -> -11.86920085 | AU13: 4.093815102 | AX13: =Stopa(AX$4,$A13) -> -1.892109652 | AY13: 2.038152827
A14: 12 | B14: =Stopa(B$4,$A14) -> -12.02117943 | C14: 0 | F14: =Stopa(F$4,$A14) -> -7.654986884 | G14: 0 | J14: =Stopa(J$4,$A14) -> -1.786571253 | K14: 0 | N14: =Stopa(N$4,$A14) -> -0.9751621472 | O14: 0 | P14: 0 | Q14: 44.03930651 | R14: =Stopa(R$4,$A14) -> 0.5951888097 | S14: 0 | V14: =Stopa(V$4,$A14) -> 1.428815979 | W14: 0 | X14: 0 | Y14: 61.87852354 | Z14: =Stopa(Z$4,$A14) -> 1.530314511 | AA14: 0 | AD14: =Stopa(AD$4,$A14) -> 0.9060368315 | AE14: 0 | AH14: =Stopa(AH$4,$A14) -> -0.4868068114 | AI14: 0 | AL14: =Stopa(AL$4,$A14) -> -2.783473344 | AM14: 0 | AP14: =Stopa(AP$4,$A14) -> -6.613383752 | AQ14: 0 | AT14: =Stopa(AT$4,$A14) -> -11.19534874 | AU14: 0 | AX14: =Stopa(AX$4,$A14) -> -1.888476073 | AY14: 0
A15: 13 | B15: =Stopa(B$4,$A15) -> -12.78807547 | C15: -4.283138409 | F15: =Stopa(F$4,$A15) -> -7.993292922 | G15: -3.295229868 | J15: =Stopa(J$4,$A15) -> -1.786571253 | K15: -2.016407881 | N15: =Stopa(N$4,$A15) -> -0.9489884654 | O15: -1.843833801 | P15: 20.43377414 | Q15: 42.33226003 | R15: =Stopa(R$4,$A15) -> 0.6582192603 | S15: -1.512687556 | V15: =Stopa(V$4,$A15) -> 1.504103564 | W15: -1.338403045 | X15: 28.20205251 | Y15: 59.51613451 | Z15: =Stopa(Z$4,$A15) -> 1.606751417 | AA15: -1.317253663 | AD15: =Stopa(AD$4,$A15) -> 0.9742264539 | AE15: -1.447577991 | AH15: =Stopa(AH$4,$A15) -> -0.447230983 | AI15: -1.740452574 | AL15: =Stopa(AL$4,$A15) -> -2.822362236 | AM15: -2.229820429 | AP15: =Stopa(AP$4,$A15) -> -6.872136386 | AQ15: -3.064228753 | AT15: =Stopa(AT$4,$A15) -> -11.86920085 | AU15: -4.093815102 | AX15: =Stopa(AX$4,$A15) -> -1.892109652 | AY15: -2.038152827
A16: 14 | B16: =Stopa(B$4,$A16) -> -15.88543284 | C16: -10.6039546 | F16: =Stopa(F$4,$A16) -> -9.255704899 | G16: -7.66068225 | J16: =Stopa(J$4,$A16) -> -1.786571253 | K16: -4.344755148 | N16: =Stopa(N$4,$A16) -> -0.8615019314 | O16: -3.934069976 | P16: 38.98079995 | Q16: 37.57075616 | R16: =Stopa(R$4,$A16) -> 0.8638609144 | S16: -3.168093935 | V16: =Stopa(V$4,$A16) -> 1.746654806 | W16: -2.77617697 | X16: 50.93472785 | Y16: 53.38031185 | Z16: =Stopa(Z$4,$A16) -> 1.852629968 | AA16: -2.729129222 | AD16: =Stopa(AD$4,$A16) -> 1.195651757 | AE16: -3.020795158 | AH16: =Stopa(AH$4,$A16) -> -0.3159478849 | AI16: -3.691870876 | AL16: =Stopa(AL$4,$A16) -> -2.956125 | AM16: -4.863979351 | AP16: =Stopa(AP$4,$A16) -> -7.820478337 | AQ16: -7.023512414 | AT16: =Stopa(AT$4,$A16) -> -14.54903491 | AU16: -10.01065981 | AX16: =Stopa(AX$4,$A16) -> -1.904430657 | AY16: -4.397078913
A17: 15 | F17: =Stopa(F$4,$A17) -> -12.82829488 | G17: -16.01581667 | J17: =Stopa(J$4,$A17) -> -1.786571253 | K17: -7.525336662 | N17: =Stopa(N$4,$A17) -> -0.6771654121 | O17: -6.672264403 | P17: 54.97007366 | Q17: 30.55914155 | R17: =Stopa(R$4,$A17) -> 1.273289942 | S17: -5.172471186 | V17: =Stopa(V$4,$A17) -> 2.215966576 | W17: -4.447604545 | X17: 68.14317765 | Y17: 45.11327632 | Z17: =Stopa(Z$4,$A17) -> 2.326758981 | AA17: -4.36241126 | AD17: =Stopa(AD$4,$A17) -> 1.631783 | AE17: -4.896809682 | AH17: =Stopa(AH$4,$A17) -> -0.04427421058 | AI17: -6.185605773 | AL17: =Stopa(AL$4,$A17) -> -3.258510062 | AM17: -8.657176895 | AP17: =Stopa(AP$4,$A17) -> -10.36528993 | AQ17: -14.12190092 | AT17: =Stopa(AT$4,$A17) -> -23.89780699 | AU17: -24.52766451 | AX17: =Stopa(AX$4,$A17) -> -1.931310705 | AY17: -7.636633364
A18: 16 | F18: =Stopa(F$4,$A18) -> -31.10223568 | G18: -52.07839458 | J18: =Stopa(J$4,$A18) -> -1.786571253 | K18: -13.03426544 | N18: =Stopa(N$4,$A18) -> -0.2880002497 | O18: -11.03839051 | P18: 68.77072085 | Q18: 22.11046709 | R18: =Stopa(R$4,$A18) -> 2.044564497 | S18: -7.931759261 | V18: =Stopa(V$4,$A18) -> 3.053871252 | W18: -6.587511943 | X18: 81.82680984 | Y18: 35.86362131 | Z18: =Stopa(Z$4,$A18) -> 3.167989796 | AA18: -6.435522922 | AD18: =Stopa(AD$4,$A18) -> 2.43668737 | AE18: -7.40950959 | AH18: =Stopa(AH$4,$A18) -> 0.5081882908 | AI18: -9.977985133 | AL18: =Stopa(AL$4,$A18) -> -4.006507673 | AM18: -15.99089242 | AP18: =Stopa(AP$4,$A18) -> -20.83505598 | AQ18: -38.40402976 | AX18: =Stopa(AX$4,$A18) -> -1.992525435 | AY18: -13.30856595
A19: 17 | J19: =Stopa(J$4,$A19) -> -1.786571253 | K19: -28.08493877 | N19: =Stopa(N$4,$A19) -> 0.7469390305 | O19: -20.81441681 | P19: 81.11716877 | Q19: 12.86394749 | R19: =Stopa(R$4,$A19) -> 3.636374499 | S19: -12.52248125 | V19: =Stopa(V$4,$A19) -> 3.3856857 | W19: -9.716045908 | X19: 86.3821881 | Y19: 26.29763959 | Z19: =Stopa(Z$4,$A19) -> 3.28315023 | AA19: -9.421795517 | AD19: =Stopa(AD$4,$A19) -> 3.967764832 | AE19: -11.38646309 | AH19: =Stopa(AH$4,$A19) -> 1.851616214 | AI19: -17.64427783 | AL19: =Stopa(AL$4,$A19) -> -7.224638945 | AM19: -43.69079236 | AX19: =Stopa(AX$4,$A19) -> -2.192402704 | AY19: -29.2495705
A20: 18 | N20: =Stopa(N$4,$A20) -> 8 | O20: -83.23928861 | P20: 92.75118823 | Q20: 3.304093043 | R20: =Stopa(R$4,$A20) -> 8 | S20: -23.39601625 | V20: =Stopa(V$4,$A20) -> 8 | W20: -15.37928979 | X20: 104.579048 | Y20: 16.84392269 | Z20: =Stopa(Z$4,$A20) -> 8 | AA20: -14.6783956 | AD20: =Stopa(AD$4,$A20) -> 8 | AE20: -19.82630202 | AH20: =Stopa(AH$4,$A20) -> 8 | AI20: -49.13665614
A21: 19 | V21: =Stopa(V$4,$A21) -> 18.98907401 | W21: -31.53581196 | X21: 115.421893 | Y21: 7.845188407
A22: 20
L25: dat | M25: čas (h) | N25: x | O25: y | P25: A (°) | Q25: h (°) | R25: tvych | S25: tsvit | T25: Delta (°) | U25: Alfa (°) | V25: Lambda | W25: xg | X25: zg
L26: 2006-06-21 | M26: 12 | N26: =Stopa(L26,M26) -> 1.57390021 | O26: 0 | P26: 0 | Q26: 63.23930209 | R26: 04:55:52,9 | S26: 16.20396531 | T26: 23.49856209 | U26: 90.67126529 | V26: 90.61559508 | W26: 8 | X26: 4
L29: dat | M29: čas (h) | N29: A | O29: h | P29: Tvých | Q29: Tzáp | R29: Tsvit | S29: Avých | T29: hmax | U29: Alfa | V29: Lambda | W29: Delta | X29: Hv. čas
L30: 2007-04-04 | M30: 18.2 | N30: =Slunce(L30,M30,50,14.5) -> 95.8014069 | O30: 2.253362047 | P30: 06:35:52,0 | Q30: 19:28:08,0 | R30: 12.87112289 | S30: 98.50295779 | T30: 45.4537876 | U30: 12.68422691 | V30: 13.78932969 | W30: 5.453787601 | X30: 06:01:46,4
K31: refrakce | L31: 2006-06-21 | M31: 15 | N31: =Slunce(L31,M31,50,1) -> 69.6547067 | O31: 46.24205722 | P31: 05:51:10,0 | Q31: 22:00:50,0 | R31: 16.16113108 | S31: 128.3386022 | T31: 63.49856209 | U31: 90.67126529 | V31: 90.61559508 | W31: 23.49856209 | X31: 07:57:17,4
L36: dat | M36: čas (h) | N36: =SlunceTx(L37,M37,50.25926,14.5) -> A (°) | O36: h (°) | P36: Tvých | Q36: Tzáp | R36: Tsvit | S36: Avých | T36: hmax | U36: Alfa (°) | V36: Lambda | W36: Delta | X36: Hv.čas | Y36: Fáze M. | Z36: Aměs
K37: nyní: | L37: =NOW() -> 2020-01-24T18:46:53.550 | M37: =(NOW()-TODAY())*24 -> 18.78154167 | N37: 93.97957209 | O37: -22.1597746 | P37: 07:41:51,9 | Q37: 16:22:08,1 | R37: 08:40:16,2 | S37: 58.80541516 | T37: 20.40332641 | U37: 53.81158745 | V37: -56.14227086 | W37: -19.33741359 | X37: 02:58:13,6 | Y37: =Faze_Mesice(L37) -> -0.0563503753 | Z37: =N37-Y37*360 -> 114.2657072
L38: 2006-12-14 | N38: =Slunce_par(L37,M37) -> 93.97957209 | O38: -22.1597746 | P38: 07:41:51,9 | Q38: 16:22:08,1 | R38: 8.671168554 | S38: 58.80541516 | T38: 20.40332641 | U38: 53.81158745 | V38: -56.14227086 | W38: -19.33741359 | X38: 02:58:13,6 | Y38: =Faze_Mesice(L38) -> -0.2478315484
L39: =L37 -> 43854.78256 | X39: =HMS(HvezCas(L37,M37)) -> 
N42: =Slunce_par(L37,M37,50,14.5,,1) -> A (°) | O42: h (°) | P42: Tvých | Q42: Tzáp | R42: Tsvit | S42: Avých | T42: hmax | U42: Alfa (°) | V42: Lambda | W42: Delta | X42: Hv.čas
N43: 94.08485273 | O43: -22.1415441 | P43: 07:40:53,3 | Q43: 16:23:06,7 | R43: 8.703698621 | S43: 58.99266616 | T43: 20.66258641 | U43: 53.81158745 | V43: -56.14227086 | W43: -19.33741359 | X43: 02:58:13,6
N44: =Slunce_par(L37,M37,14.5,,1) -> 73.56227368 | O44: -15.57631814 | P44: 06:19:25,0 | Q44: 17:44:35,0 | R44: 11.4194441 | S44: 70.19675004 | T44: 56.16258641 | U44: 53.81158745 | V44: -56.14227086 | W44: -19.33741359 | X44: 02:58:13,6
L45: 2006-12-01
Y46: =HMS(12.325) -> 12:19:30,0
M47: Velikonoce | N47: =dat_jul(L45) -> 2454071 | Y47: =HMS_inv(Y46) -> 12.325
L48: 2020 | M48: =DOLLAR(("4/"&L48)/7+MOD(19*MOD(L48,19)-7,30)*14%,)*7-5 -> 2020-04-13 | N48: =julian(1,12,2006) -> 2454071 | Y48: =HMS_inv(R37) -> 
M49: =Velikonoce(L48) -> 2020-04-13
L50: =Velikonoce_dat(L48) -> 13 | M50: 4
L52: Fáze Měsíce
L53: =Faze_Mesice(M53) -> 0.2656864481 | M53: 2019-12-31T00:10:00
L54: =Faze_Mesice(M54) -> -0.7343334702 | M54: =M53+29.53/2 -> 2020-01-14T18:31:36
L55: =Faze_Mesice(M55) -> -0.2489466498 | M55: 2020-03-21
L56: =Faze_Mesice(M56) -> -0.0563503753 | M56: =NOW() -> 2020-01-24T18:46:53.550

Sheet SUN
B3: SUN - Program pro výpočet východů a západů Slunce a Měsíce
B5: V1.1 | E5: V. Hlubuček 2020
B8: Program počítá východy, kulminaci a západy Slunce
B9: Měsíce a jejich další parametry polohy na obloze.
B10: Také počítá datum Velikonoc a fázi Měsíce
B11: a datum posledního a následujícího novu a úplňku
B13: Program spustíte současným stiskem Ctrl+M
B14: nebo kliknutím na tlačítko Spustit
B16: Hodnoty nejsou astronomicky přesné, ale pro
B17: běžné občanské použití zcela postačující.
B19: Komplexnější program Astro.jar v jazyce Java
B20: je k dispozici na mé osobní stránce
B21: hlubucek.net
B22: Zahrnuje i východy a západy Měsíce a planet a jejich
B23: parametry, jakož i viditelnost.
